[Event "58th Akiba Rubinstein GM 2022"]
[Site "Polanica-Zdroj"]
[Date "2022.08.16"]
[Round "3.4"]
[White "Kempinski, Robert"]
[Black "Tazbir, Marcin"]
[Result "1/2-1/2"]
[ECO "A21"]
[WhiteElo "2558"]
[BlackElo "2511"]
[Annotator "TA"]
[PlyCount "60"]
[EventDate "2022.08.13"]
[EventCountry "POL"]
[SourceTitle "playchess.com"]
[Source "ChessBase"]
[SourceQuality "1"]
[TimeControl "40/5400+30:1800+30"]

{[%evp 15,60,11,14,20,43,0,0,0,0,0,15,0,0,0,19,0,21,-20,-14,-8,0,0,0,-21,-24,-31,-29,-33,0,0,0,0,0,0,0,0,0,0,0,0,0,0,0,0,0,0,0]} 1. c4 {[%emt 0:00:43]} e5 {[%emt 0:00:32]} 2. Nc3 {[%emt 0:00:23]} f5 {[%emt 0:00:56]} 3. g3 {[%emt 0:03:06]} d6 {[%emt 0:03:23]} 4. Bg2 {[%emt 0:01:17]} Nf6 {[%emt 0:00:15]} 5. d3 {[%emt 0:02:34]} Be7 {[%emt 0:00:45]} 6. Nf3 {[%emt 0:01:03]} O-O {[%emt 0:00:46]} 7. O-O {[%emt 0:01:29]} c6 {[%emt 0:03:57]} 8. Rb1 {[%emt 0:01:02]} a5 {[%emt 0:00:17]} 9. a3 {[%emt 0:00:11][%cal Ba2a3,Ba3b4][%mdl 32] A21: English Opening: 1...e5 2 Nc3.} h6 {[%emt 0:08:15]} 10. b4 {[%emt 0:02:16]} axb4 {[%emt 0:01:15]} 11. axb4 {[%emt 0:00:08]} Be6 {[%emt 0:00:14]} 12. Bb2 {[%emt 0:02:43] [#]} Qe8 $146 {[%emt 0:01:36]} ({Predecessor:} 12... Nbd7 13. Nd2 d5 14. cxd5 cxd5 15. Qb3 Nb6 16. e4 Qd7 17. exd5 Nfxd5 18. Nxd5 Nxd5 {½-½ (31) Ruzic,P (1660)-Laco,G (1958) Nova Gorica 2018}) 13. b5 {[%emt 0:01:45]} Nbd7 {[%emt 0:01:15]} 14. e3 {[%emt 0:02:23]} Nc5 {[%emt 0:04:33]} 15. bxc6 {[%emt 0:02:49]} bxc6 {[%emt 0:00:03]} 16. d4 {[%emt 0:01:14]} Ncd7 {[%emt 0:01:51]} 17. dxe5 {[%emt 0:02:13]} Nxe5 {[%emt 0:03:36]} 18. c5 {[%emt 0:02:52]} Nxf3+ {[%emt 0:02:16]} 19. Bxf3 {[%emt 0:02:01]} dxc5 {[%emt 0:04:34]} 20. Qc2 {[%emt 0:04:20]} Nd5 {[%emt 0:07:42][%cal Bf6d5,Bd5f4,Bf4d3][%mdl 32]} 21. Na4 {[%emt 0:05:16]} c4 {[%emt 0:06:21]} 22. Qxc4 {[%emt 0:06:20] The position is equal.} f4 {[%emt 0:01:51] [#] Hoping for ...fxg3.} 23. Nc5 {[%emt 0:04:26]} ({Reject} 23. exf4 {[#]} Nxf4 $1 24. Qxc6 Nh3+ 25. Kg2 Qf7 $15) 23... fxe3 {[%emt 0:09:36]} 24. fxe3 {[%emt 0:02:51]} Bf7 {[%emt 0:01:00]} 25. e4 {[%emt 0:03:47]} Nf4 {[%emt 0:00:46]} 26. Qd4 {[%emt 0:02:19][%csl Gb2][%cal Rd4g7]} Bxc5 {[%emt 0:00:09]} 27. Qxc5 {[%emt 0:00:08]} Nd3 {[%emt 0:00:05]} 28. Qc3 {[%emt 0:00:32][%csl Gb2][%cal Rc3g7]} Nxb2 {[%emt 0:00:03]} 29. Rxb2 {[%emt 0:00:12]} Be6 {[%emt 0:02:31]} 30. Rbf2 {[%emt 0:02:04]} Qd7 {[%emt 0:01:10] Weighted Error Value: White=0.06 (flawless) /Black=0.05 (flawless)} 1/2-1/2

[Event "58th Akiba Rubinstein GM 2022"]
[Site "Polanica-Zdroj"]
[Date "2022.08.16"]
[Round "3.5"]
[White "Tomczak, Jacek"]
[Black "Sumets, Andrey"]
[Result "1/2-1/2"]
[ECO "B14"]
[WhiteElo "2596"]
[BlackElo "2547"]
[Annotator "TA"]
[PlyCount "161"]
[EventDate "2022.08.13"]
[EventCountry "POL"]
[SourceTitle "playchess.com"]
[Source "ChessBase"]
[SourceQuality "1"]
[TimeControl "40/5400+30:1800+30"]

{[%evp 20,161,20,16,20,20,11,0,8,7,27,23,22,19,27,23,33,19,21,18,37,10,0,8,8,-25,-32,-67,-68,-90,-68,-77,-75,-77,-71,-142,-145,-140,-129,-134,-134,-136,0,0,0,0,0,0,0,0,0,-55,0,0,2,0,0,0,0,0,0,0,0,0,0,0,0,0,32,40,33,0,58,65,39,39,46,0,39,0,41,13,13,14,22,0,0,0,0,0,0,0,0,0,0,0,0,0,0,0,245,245,245,245,245,245,245,238,190,88,91,91,181,50,190,172,236,172,354,8,8,8,8,8,8,8,8,8,8,0,0,0,8,8,8,8,8,8,8,0,0,0,0,0]} 1. e4 {[%emt 0:00:02]} c6 {[%emt 0:00:11]} 2. d4 {[%emt 0:00:19]} d5 {[%emt 0:00:04]} 3. exd5 {[%emt 0:00:16]} cxd5 {[%emt 0:00:05]} 4. c4 {[%emt 0:00:07]} Nf6 {[%emt 0:00:15]} 5. Nc3 {[%emt 0:00:09]} e6 {[%emt 0:00:55]} 6. Nf3 {[%emt 0:00:30]} Bb4 {[%emt 0:02:10]} 7. cxd5 {[%emt 0:01:22]} Nxd5 {[%emt 0:00:07]} 8. Bd2 {[%emt 0:00:09]} Nc6 {[%emt 0:00:59]} 9. Bd3 {[%emt 0:00:20]} O-O {[%emt 0:00:28]} 10. O-O {[%emt 0:00:19]} Be7 {[%emt 0:00:24]} 11. Re1 {[%emt 0:02:36]} Ndb4 {[%emt 0:05:39][%csl LRd3,LRd4] B14: Caro-Kann: Panov-Botvinnik Attack with 5...e6 and 5...g6.} 12. Be4 {[%emt 0:02:50]} Nxd4 {[%emt 0:00:29]} 13. Nxd4 {[%emt 0:01:03]} Qxd4 {[%emt 0:00:05]} 14. Qe2 {[%emt 0:00:10]} (14. Qh5 f5 15. Be3 Qf6 $15) 14... Nc6 {[%emt 0:33:55] [#]} (14... f5 $5 {[%cal Rf5e4]} 15. Be3 Qf6 $11) 15. Rad1 $146 {[%emt 0:03:20][%mdl 1024] White has compensation.} (15. Qh5 f5 16. Bxc6 (16. Be3 Qb4 $15) 16... Qxd2 $11) ({Predecessor:} 15. Nb5 Qf6 16. Bc3 Qh6 17. Rad1 Bf6 18. Rd3 Bxc3 19. Rxc3 e5 20. Rd1 a6 21. Bxc6 bxc6 {½-½ (34) Sylvan,J (2326)-Turov,M (2600) Teplice 2018}) 15... Qf6 {[%emt 0:08:29]} 16. Be3 {[%emt 0:08:31]} Bb4 {[%emt 0:06:37]} 17. Qh5 {[%emt 0:10:20][%csl Ge4][%cal Rh5h7]} h6 {[%emt 0:04:40]} 18. h4 {[%emt 0:13:23][%cal Oe3g5]} Bxc3 {[%emt 0:19:02]} 19. bxc3 {[%emt 0:07:54][%cal Oe3g5]} e5 {[%emt 0:00:18]} 20. Bc1 {[%emt 0:11:22] A strong pair of Bishops.} (20. Rd3 $5 {[%cal Re3c5]}) 20... Rd8 {[%emt 0:05:36]} 21. Rxd8+ {[%emt 0:03:21]} Nxd8 {[%emt 0:00:06]} 22. Bc2 {[%emt 0:10:31]} Nc6 {[%emt 0:01:57]} 23. Re3 {[%emt 0:11:47]} Qf4 {[%emt 0:00:16]} 24. Qd1 {[%emt 0:00:04]} Be6 {[%emt 0:04:51]} 25. Qd3 {[%emt 0:08:27] aiming for Qh7+.} f5 {[%emt 0:01:49]} 26. Qb5 {[%emt 0:02:32]} Rb8 {[%emt 0:00:13]} (26... Qxh4 $2 27. Qxb7 Rf8 28. Qxc6 $18) 27. Bb3 {[%emt 0:01:13]} (27. Qb1 $142 Qxh4 28. Bxf5 Bxf5 29. Qxf5) 27... Bxb3 $17 {[%emt 0:00:15]} 28. Qxb3+ {[%emt 0:00:05]} Kh8 {[%emt 0:00:09]} 29. Qf7 {[%emt 0:00:45]} e4 $1 {[%emt 0:02:07] And now ...Ne5 would win.} (29... Qxh4 30. Qxf5 Qf4 31. Qb1 $15) 30. Re1 {[%emt 0:00:56]} Qe5 {[%emt 0:00:27]} ({Much weaker is} 30... Qxh4 $6 31. Qxf5 Re8 32. Bf4 $11) (30... Qg4 $1 $17 {Strongly threatening ...Ne5.} 31. Qe6 Rd8) 31. Rd1 $11 {[%emt 0:00:32][%cal Oc1h6]} Kh7 {[%emt 0:02:45]} 32. h5 {[%emt 0:00:39]} Rd8 {[%emt 0:00:08]} 33. Rxd8 {[%emt 0:00:24]} Nxd8 {[%emt 0:00:04][%mdl 4096] Endgame KQB-KQN} 34. Qg6+ {[%emt 0:00:34]} Kh8 {[%emt 0:00:07]} 35. Be3 {[%emt 0:00:16]} (35. Bxh6 $1 $11 f4 36. Bxf4 Qxf4 37. Qe8+ Kh7 38. Qxd8) 35... Nc6 {[%emt 0:00:09]} ({Black should play} 35... Qe6 $1 $15) 36. Qf7 {[%emt 0:00:25]} b6 {[%emt 0:00:47]} 37. g3 {[%emt 0:00:43]} b5 {[%emt 0:00:36]} 38. Bf4 {[%emt 0:00:35]} Qc5 {[%emt 0:00:45]} 39. Be3 {[%emt 0:00:20]} Qe5 {[%emt 0:00:06]} 40. Bf4 {[%emt 0:00:00]} Qc5 {[%emt 0:00:00]} 41. Qe8+ {[%emt 0:12:34]} Kh7 {[%emt 0:00:10]} 42. Qe6 {[%emt 0:00:17]} a5 {[%emt 0:17:56]} (42... Ne7 $2 43. Be3 (43. Bd6 Qd5 $11) 43... Qd5 44. Qxe7 $18) 43. Be3 {[%emt 0:04:50]} Qc4 {[%emt 0:00:26]} 44. Qxf5+ {[%emt 0:00:08]} Kh8 {[%emt 0:00:30]} 45. a3 {[%emt 0:04:14]} a4 {[%emt 0:00:23]} (45... Qxc3 $11 46. Qxb5 Qf6) 46. Kg2 $14 {[%emt 0:05:16]} Kg8 {[%emt 0:05:12]} 47. Qg6 {[%emt 0:01:35] Bxh6 is the strong threat.} Kh8 {[%emt 0:05:09]} 48. Qf5 {[%emt 0:02:19]} Kg8 $1 {[%emt 0:00:08]} 49. Kg1 {[%emt 0:01:37]} Kh8 {[%emt 0:02:29]} 50. g4 {[%emt 0:00:18]} (50. Bc5 $5 {[%cal Rf5c8]} Nd8 51. Be3 $14) 50... Qxc3 {[%emt 0:02:18]} 51. Qxb5 {[%emt 0:00:41]} Qf6 {[%emt 0:01:20]} 52. Qxa4 {[%emt 0:01:47]} (52. Qd5 {is more complex.} Qf3 53. Qd7 Ne7 54. Kf1) 52... Qe6 {[%emt 0:00:04]} 53. Kf1 {[%emt 0:01:04]} Qxg4 {[%emt 0:00:05]} 54. Ke1 {[%emt 0:00:31]} Qe6 {[%emt 0:00:19]} (54... Qg1+ $2 55. Kd2 Ne7 56. Qxe4 $16) 55. Qc2 {[%emt 0:00:27]} Na5 {[%emt 0:01:25]} 56. Qc5 {[%emt 0:00:15]} Nc6 {[%emt 0:00:29]} 57. Bf4 {[%emt 0:00:28]} Qd7 {[%emt 0:01:08]} 58. Qf8+ {[%emt 0:00:41]} Kh7 {[%emt 0:00:04]} 59. Qd6 {[%emt 0:00:03]} Qxd6 {[%emt 0:00:15]} (59... Qf5 $11) 60. Bxd6 $11 {[%emt 0:00:04] KB-KN} g6 {[%emt 0:00:03]} 61. Kd2 $1 {[%emt 0:00:40]} gxh5 {[%emt 0:00:40]} 62. Ke3 {[%emt 0:00:15]} Na5 {[%emt 0:00:31]} 63. Bb4 {[%emt 0:00:30]} ({Much less strong is} 63. Kxe4 $6 Nc4) 63... Nc4+ {[%emt 0:01:02]} 64. Kd4 {[%emt 0:00:27]} (64. Kxe4 $18 {Black must now prevent Kd5.} Nb6 65. Bc5) 64... Nb6 {[%emt 0:00:31]} 65. Kxe4 {[%emt 0:00:26]} Kg6 {[%emt 0:00:24] [#]} (65... h4 $16) 66. Bc5 {[%emt 0:00:52]} ({White has to play} 66. Be7 $1 $18) 66... Nd7 {[%emt 0:00:39]} (66... Na4 $1 $14 67. Bd4 h4) 67. Bd6 {[%emt 0:00:26]} Kf6 {[%emt 0:00:47]} (67... Nb6 $142 68. Be7 Na4) 68. Kd5 $18 {[%emt 0:01:13] Hoping for Bc7.} h4 $2 {[%emt 0:00:06] [#]} (68... Nb6+ {was called for.} 69. Kc5 Na4+ 70. Kb4 Ke6) 69. Ke4 $2 {[%emt 0:01:18]} (69. Bh2 $1 $18 Kf5 70. Kd6) 69... Ke6 $11 {[%emt 0:00:13] The position is equal.} 70. Bh2 {[%emt 0:00:21]} Nc5+ {[%emt 0:00:22]} 71. Kd4 {[%emt 0:00:13]} Na4 {[%emt 0:00:45]} 72. f3 {[%emt 0:00:20]} h3 {[%emt 0:00:18]} 73. Kc4 {[%emt 0:00:32]} Kd7 {[%emt 0:01:01]} 74. Kd5 {[%emt 0:00:35]} Nc3+ {[%emt 0:00:21]} 75. Ke5 {[%emt 0:00:26]} Ne2 {[%emt 0:00:36]} 76. Ke4 {[%emt 0:00:42]} Kc6 {[%emt 0:00:22]} 77. Ke3 {[%emt 0:00:25]} Nc3 {[%emt 0:00:11]} 78. Kf4 {[%emt 0:00:26]} Nb5 {[%emt 0:00:43]} 79. Kg4 {[%emt 0:00:26]} Nxa3 {[%emt 0:00:12]} 80. f4 {[%emt 0:00:40]} Nc4 {[%emt 0:00:11]} 81. Kxh3 {[%emt 0:00:13] Quite a comeback for White.  Weighted Error Value: White=0.10 (very precise) /Black=0.18 (very precise)} 1/2-1/2

[Event "58th Akiba Rubinstein GM 2022"]
[Site "Polanica-Zdroj"]
[Date "2022.08.16"]
[Round "4.1"]
[White "Tazbir, Marcin"]
[Black "Nasuta, Grzegorz"]
[Result "1/2-1/2"]
[ECO "D85"]
[WhiteElo "2511"]
[BlackElo "2500"]
[Annotator "TA"]
[PlyCount "63"]
[EventDate "2022.08.13"]
[EventCountry "POL"]
[SourceTitle "playchess.com"]
[Source "ChessBase"]
[SourceQuality "1"]
[TimeControl "40/5400+30:1800+30"]

{[%evp 23,63,3,13,0,0,0,0,0,0,0,0,0,0,0,0,0,0,0,0,0,0,0,0,0,0,0,0,0,0,0,0,0,0,0,0,0,0,0,0,0,0,0]} 1. c4 {[%emt 0:00:05]} Nf6 {[%emt 0:01:08]} 2. Nc3 {[%emt 0:00:48]} d5 {[%emt 0:01:01]} 3. cxd5 {[%emt 0:00:37]} Nxd5 {[%emt 0:00:06]} 4. d4 {[%emt 0:00:56]} g6 {[%emt 0:00:27]} 5. g3 {[%emt 0:00:43]} Bg7 {[%emt 0:00:20]} 6. Bg2 {[%emt 0:00:05]} Nxc3 {[%emt 0:00:14]} 7. bxc3 {[%emt 0:00:13]} c5 {[%emt 0:00:48]} 8. Nf3 {[%emt 0:01:46]} Nc6 {[%emt 0:01:00]} 9. O-O {[%emt 0:05:59]} cxd4 {[%emt 0:03:16]} 10. cxd4 {[%emt 0:02:39]} Nxd4 {[%emt 0:00:18]} 11. Nxd4 {[%emt 0:00:41]} Qxd4 {[%emt 0:00:09]} 12. Rb1 {[%emt 0:00:13]} O-O {[%emt 0:00:41] The position is equal.} 13. Be3 {[%emt 0:03:12] D75: Fianchetto Grünfeld: Main Line with 7...c5.} Qc4 {[%emt 0:01:35]} 14. Bd5 {[%emt 0:03:28]} Qa6 {[%emt 0:01:24]} 15. Qb3 {[%emt 0:02:26]} Qxe2 {[%emt 0:02:51]} 16. Bc5 {[%emt 0:02:26] [#] Rfe1 is the strong threat.} Bf5 {[%emt 0:05:32]} 17. Rfe1 {[%emt 0:08:13]} Qd2 {[%emt 0:02:09]} 18. Rbd1 {[%emt 0:01:01] [#]} Qc2 $146 {[%emt 0:00:28]} ({Predecessor:} 18... Qc3 19. Qxc3 Bxc3 20. Rxe7 Rac8 21. Be3 Rfd8 22. Rxb7 {½-½ (22) Koch,H (2101)-Boehnke,H (2015) GER email 2013}) 19. Qxc2 {[%emt 0:01:59]} Bxc2 {[%emt 0:00:08]} 20. Rc1 {[%emt 0:00:03]} Bf5 {[%emt 0:00:49]} 21. Rxe7 {[%emt 0:03:31]} Rac8 {[%emt 0:03:25] [#] Strongly threatening ...Bb2.} 22. Rxb7 {[%emt 0:03:37]} Bd4 {[%emt 0:00:27]} 23. Ba3 {[%emt 0:00:25]} Rxc1+ {[%emt 0:00:15]} 24. Bxc1 {[%emt 0:00:06]} Be6 {[%emt 0:00:58]} 25. Bxe6 {[%emt 0:00:10]} fxe6 {[%emt 0:00:06]} 26. Be3 {[%emt 0:00:07]} Bxe3 {[%emt 0:00:12]} 27. fxe3 $11 {[%emt 0:00:04] KR-KR} Rf7 {[%emt 0:00:34]} 28. Rb8+ {[%emt 0:00:06]} Kg7 {[%emt 0:00:25]} 29. Kg2 {[%emt 0:00:07]} Rf5 {[%emt 0:01:00]} 30. Rb7+ {[%emt 0:00:05]} Rf7 {[%emt 0:00:10]} 31. Rb8 {[%emt 0:00:06]} Rf5 {[%emt 0:00:08]} 32. Rb7+ {[%emt 0:00:03] A balanced but interesting game.  Weighted Error Value: White=0.01 (flawless) /Black=0.00 (flawless)} 1/2-1/2

[Event "58th Akiba Rubinstein GM 2022"]
[Site "Polanica-Zdroj"]
[Date "2022.08.16"]
[Round "4.2"]
[White "Plat, Vojtech"]
[Black "Sumets, Andrey"]
[Result "1-0"]
[ECO "B10"]
[WhiteElo "2556"]
[BlackElo "2547"]
[Annotator "TA"]
[PlyCount "71"]
[EventDate "2022.08.13"]
[EventCountry "POL"]
[SourceTitle "playchess.com"]
[Source "ChessBase"]
[SourceQuality "1"]
[TimeControl "40/5400+30:1800+30"]

{[%evp 9,71,0,0,-2,11,11,25,28,30,0,11,0,0,0,-1,-21,-19,-12,-18,-38,-32,-49,-41,-52,-49,-39,0,0,7,11,8,0,0,0,14,0,0,-11,-1,-1,5,8,89,73,97,63,143,130,169,172,366,371,362,364,379,329,732,784,773,710,510,433,1014,936]} 1. e4 {[%emt 0:00:03]} c6 {[%emt 0:01:14]} 2. Nf3 {[%emt 0:00:07][%cal Bg1f3,Bf3e1,Be1d3][%mdl 32]} d5 {[%emt 0:00:05]} 3. d3 {[%emt 0:00:04]} dxe4 {[%emt 0:00:06]} 4. dxe4 {[%emt 0:00:03]} Qxd1+ {[%emt 0:00:04]} 5. Kxd1 {[%emt 0:00:05]} Nf6 {[%emt 0:00:08]} 6. Nbd2 {[%emt 0:00:04] B10: Caro-Kann: 2 d3 and 2 c4.} g6 {[%emt 0:00:08] 6...g6 scores better than 6...Bg4.} 7. Ne1 {[%emt 0:00:07]} h5 {[%emt 0:01:28]} 8. f3 {[%emt 0:00:32] White has an edge.} Bh6 {[%emt 0:00:08] [#]} 9. a4 $146 {[%emt 0:00:30]} ({Predecessor:} 9. c3 Nbd7 10. Nd3 h4 11. a4 Nh5 12. Nc4 Bxc1 13. Kxc1 Nb6 14. Ne3 a5 15. g4 {½-½ (79) Sjugirov,S (2680)-Donchenko,A (2636) Chess.com INT 2022}) 9... Be6 {[%emt 0:03:50]} 10. Nd3 {[%emt 0:01:47]} Nbd7 {[%emt 0:07:44][%cal Bb8d7,Bd7c5,Bc5d3][%mdl 32]} 11. b3 {[%emt 0:04:59]} O-O-O {[%emt 0:19:51]} 12. a5 {[%emt 0:00:17]} h4 {[%emt 0:05:44]} 13. Bb2 {[%emt 0:18:18] [#]} Nc5 $1 {[%emt 0:05:02]} 14. b4 {[%emt 0:10:03]} (14. Bc3 Be3) 14... Nxd3 {[%emt 0:00:14]} 15. Bxd3 {[%emt 0:00:03]} Bf4 {[%emt 0:07:02]} 16. Ke2 {[%emt 0:02:08]} Rh5 {[%emt 0:00:37]} 17. Nf1 {[%emt 0:06:16]} Rg5 {[%emt 0:08:02]} 18. g3 {[%emt 0:03:32] Black must now prevent Bxf6.} hxg3 {[%emt 0:07:17]} 19. hxg3 {[%emt 0:00:06]} Bd6 {[%emt 0:01:47]} 20. f4 {[%emt 0:07:33]} Rh5 {[%emt 0:00:05]} 21. Rxh5 {[%emt 0:00:03]} Nxh5 {[%emt 0:00:05]} 22. Bc3 {[%emt 0:01:27]} c5 $1 {[%emt 0:06:11]} 23. e5 {[%emt 0:02:33]} cxb4 {[%emt 0:00:33]} 24. Bd4 {[%emt 0:00:05]} Bc7 {[%emt 0:08:03]} 25. Bxa7 {[%emt 0:00:47]} b3 {[%emt 0:05:01]} (25... g5 $11 {remains equal.} 26. Be3 gxf4 27. gxf4 f6) 26. cxb3 $16 {[%emt 0:02:04]} Bxb3 {[%emt 0:00:05]} 27. Rc1 {[%emt 0:01:48] Threatens to win with Bb6.} Bd5 {[%emt 0:01:35]} (27... Ba4 $1 $14) 28. Bb5 {[%emt 0:00:20]} Ng7 {[%emt 0:03:43]} 29. Ne3 {[%emt 0:01:56]} Ne6 $2 {[%emt 0:00:24]} (29... Bc6 30. Bxc6 bxc6) 30. Nxd5 $18 {[%emt 0:00:47]} Rxd5 {[%emt 0:00:06] [#]} 31. Bc4 {[%emt 0:00:01]} ({Weaker is} 31. Be8 Rxa5 32. Be3 (32. Bxf7 Nxf4+ 33. gxf4 Rxa7 $14) 32... f6 $16) 31... Rd7 {[%emt 0:00:14]} (31... Rxa5 $2 32. Bxe6+ fxe6 33. Bb6 $18) 32. Bb6 {[%emt 0:03:36] Hoping for Bxe6.} Kb8 $2 {[%emt 0:00:11]} (32... Kd8 33. Ke3 Bxb6+ 34. axb6 Nc5) 33. Bxe6 {[%emt 0:00:06] White is clearly winning.} fxe6 {[%emt 0:00:05]} 34. Rh1 {[%emt 0:00:04] Strongly threatening Rh8+.} Bxb6 {[%emt 0:00:48]} 35. axb6 {[%emt 0:00:03] Threatening mate with Rh8+.} Kc8 {[%emt 0:00:10]} (35... Rd8 $142 36. Rh7 Re8) 36. Rh7 {[%emt 0:00:02] Weighted Error Value: White=0.06 (flawless) /Black=0.22 (precise)} 1-0

[Event "58th Akiba Rubinstein GM 2022"]
[Site "Polanica-Zdroj"]
[Date "2022.08.16"]
[Round "4.3"]
[White "Donchenko, Alexander"]
[Black "Tomczak, Jacek"]
[Result "0-1"]
[ECO "A05"]
[WhiteElo "2630"]
[BlackElo "2596"]
[Annotator "TA"]
[PlyCount "48"]
[EventDate "2022.08.13"]
[EventCountry "POL"]
[SourceTitle "playchess.com"]
[Source "ChessBase"]
[SourceQuality "1"]
[TimeControl "40/5400+30:1800+30"]

{[%evp 9,48,38,46,41,45,50,43,44,52,46,39,34,48,49,36,35,44,24,37,19,49,44,53,29,39,0,0,0,0,-59,-65,-63,-60,-30,-8,-82,-57,-158,-71,-650,-620]} 1. Nf3 {[%emt 0:00:02]} Nf6 {[%emt 0:00:15]} 2. c4 {[%emt 0:00:11]} g6 {[%emt 0:00:22]} 3. Nc3 {[%emt 0:00:33]} Bg7 {[%emt 0:00:23]} 4. e4 {[%emt 0:00:38]} e5 {[%emt 0:00:33]} 5. Nxe5 {[%emt 0:00:23]} O-O {[%emt 0:00:14]} 6. Nf3 {[%emt 0:00:27] A16: English Opening: 1...Nf6 with ...d5.} Re8 $1 {[%emt 0:00:32]} 7. d3 {[%emt 0:00:30]} d5 $1 {[%emt 0:00:38]} 8. cxd5 {[%emt 0:00:22] White is slightly better.} Nxd5 {[%emt 0:00:10]} 9. Bd2 {[%emt 0:00:21]} Bg4 {[%emt 0:01:59]} 10. Be2 {[%emt 0:00:20]} Bxf3 {[%emt 0:06:38]} 11. gxf3 {[%emt 0:00:24]} Nb4 {[%emt 0:00:11]} 12. Be3 {[%emt 0:00:29]} N8c6 {[%emt 0:00:07] Prevents d4.} 13. a3 {[%emt 0:00:53]} Na6 {[%emt 0:00:18] [#]} 14. Nb5 $146 {[%emt 0:00:53] Black should prevent d4.} ({Predecessor:} 14. Rc1 Nd4 15. b4 c6 16. h4 Nc7 17. h5 a5 18. hxg6 hxg6 19. bxa5 Nce6 20. f4 Qxa5 {0-1 (61) Sargsyan,S (2601)-Gupta,A (2603) Chess.com INT 2020}) 14... Nd4 {[%emt 0:00:27]} 15. Nxd4 {[%emt 0:20:33]} Bxd4 {[%emt 0:00:06]} 16. Qa4 {[%emt 0:01:11]} c5 {[%emt 0:18:30]} (16... Bxb2 17. Rb1 Bc3+ 18. Kf1 $16) 17. f4 {[%emt 0:10:49]} Bxe3 {[%emt 0:13:47]} ({Much less strong is} 17... Bxb2 18. Rb1 Bc3+ 19. Kf1 $16) 18. fxe3 {[%emt 0:00:07]} c4 {[%emt 0:00:06]} 19. O-O-O {[%emt 0:13:57]} ({Don't blunder} 19. dxc4 $2 Qh4+ 20. Kd2 Rad8+ 21. Kc2 (21. Kc1 $2 Qf2 $19) 21... Qf2 $19) ({White should try} 19. Qxc4 $11 Rc8 20. Qb5) 19... c3 $1 $15 {[%emt 0:10:39]} 20. bxc3 {[%emt 0:06:23]} Rc8 {[%emt 0:01:22]} 21. Kc2 {[%emt 0:10:29]} Nc5 {[%emt 0:02:46][%mdl 1024] Black has compensation.} 22. Qd4 {[%emt 0:01:14]} ({Wrong is} 22. Qxa7 $2 Qc7 23. Rb1 Nxd3 $1 $19) (22. Qb4 $1 $11) 22... Qh4 $1 $17 {[%emt 0:01:23] White must now prevent ...b5.} 23. Rd2 {[%emt 0:03:16] [#]} (23. Rhf1 $1 $15) 23... Red8 {[%emt 0:02:18]} (23... b5 $142 $1 {Threatens to win with ...Na4.} 24. Rhd1 Red8) 24. Qe5 $2 {[%emt 0:01:20][%mdl 8192] [#]} (24. Qb4 $17) 24... f6 $1 {[%emt 0:01:06] Weighted Error Value: White=0.60/Black=0.07 (flawless)} 0-1

[Event "58th Akiba Rubinstein GM 2022"]
[Site "Polanica-Zdroj"]
[Date "2022.08.16"]
[Round "4.4"]
[White "Bernadskiy, Vitaliy"]
[Black "Mastrovasilis, Dimitrios"]
[Result "1/2-1/2"]
[ECO "C65"]
[WhiteElo "2598"]
[BlackElo "2597"]
[Annotator "TA"]
[PlyCount "67"]
[EventDate "2022.08.13"]
[EventCountry "POL"]
[SourceTitle "playchess.com"]
[Source "ChessBase"]
[SourceQuality "1"]
[TimeControl "40/5400+30:1800+30"]

{[%evp 11,67,12,14,14,0,6,18,12,17,20,14,24,16,19,43,42,39,43,73,44,41,17,41,25,31,24,23,-17,-14,-15,0,-14,0,0,0,0,0,0,0,0,0,0,3,0,0,0,0,0,0,0,2,0,0,0,25,22,17,11]} 1. e4 {[%emt 0:00:03]} e5 {[%emt 0:02:25]} 2. Nf3 {[%emt 0:00:04]} Nc6 {[%emt 0:00:09]} 3. Bb5 {[%emt 0:00:08]} Nf6 {[%emt 0:00:24]} 4. d3 {[%emt 0:00:33]} Bc5 {[%emt 0:00:23]} 5. O-O {[%emt 0:06:34]} Nd4 {[%emt 0:01:04]} 6. Nxd4 {[%emt 0:00:04]} Bxd4 {[%emt 0:00:18]} 7. c3 {[%emt 0:00:26] C65: Ruy Lopez: Berlin Defence (3...Nf6), unusual lines and 4 0-0 Bc5.} Bb6 {[%emt 0:00:14]} 8. Na3 $1 {[%emt 0:00:47][%cal Bb1a3,Ba3c4,Bc4e3][%mdl 4] 8.Na3 is the modern continuation.} O-O {[%emt 0:17:23]} 9. Bg5 {[%emt 0:00:46][%cal Bc1g5,Bg5h4,Bh4g3,Bg3h2][%mdl 32]} h6 {[%emt 0:10:17]} 10. Bh4 {[%emt 0:00:06]} c6 {[%emt 0:00:43]} 11. Ba4 {[%emt 0:00:36]} d6 {[%emt 0:00:50]} 12. Nc4 {[%emt 0:00:56]} Bc7 {[%emt 0:13:17] [#] Hoping for ...b5.} 13. Ne3 {[%emt 0:00:16]} g5 {[%emt 0:01:27]} 14. Bg3 {[%emt 0:00:06]} Be6 {[%emt 0:00:43]} 15. Bb3 {[%emt 0:02:27] [#]} Qe7 $146 {[%emt 0:01:31]} ({Predecessor:} 15... a5 16. a4 Qd7 17. Bc2 Ng4 18. Nxg4 Bxg4 19. f3 Be6 20. d4 f6 21. Qd2 Rad8 {½-½ (30) Hansen,E (2577)-Movsesian,S (2659) Doha 2014}) 16. h4 {[%emt 0:00:26]} Kh8 {[%emt 0:07:52]} 17. Re1 {[%emt 0:02:38]} Rg8 {[%emt 0:01:20]} 18. hxg5 {[%emt 0:04:27]} hxg5 {[%emt 0:00:54]} 19. Bh2 {[%emt 0:17:55]} g4 {[%emt 0:10:57]} (19... Kg7 {seems wilder.} 20. g4 Rh8 21. Qf3 Rh6) 20. Kf1 {[%emt 0:12:21][%cal Bg1f1,Bf1e2,Be2d2][%mdl 32]} Bb6 {[%emt 0:08:00]} 21. Qd2 {[%emt 0:03:31]} Kg7 {[%emt 0:04:11]} 22. Ke2 {[%emt 0:01:37]} Rh8 {[%emt 0:00:39]} 23. Rh1 {[%emt 0:01:21]} Nh5 {[%emt 0:02:11]} 24. Bxe6 {[%emt 0:02:25] [#] Strongly threatening Nf5+.} Bxe3 {[%emt 0:00:22]} 25. Qxe3 {[%emt 0:00:07]} Qxe6 {[%emt 0:00:17]} 26. Bg3 {[%emt 0:02:49]} Rh6 {[%emt 0:02:18]} 27. Kd2 {[%emt 0:02:42]} Rah8 {[%emt 0:00:56]} 28. Rhg1 {[%emt 0:01:01]} c5 {[%emt 0:01:18]} 29. Bh4 {[%emt 0:00:57]} Rg6 {[%emt 0:00:28]} 30. g3 {[%emt 0:00:33]} f5 {[%emt 0:02:22]} 31. exf5 {[%emt 0:00:11]} Qxf5 {[%emt 0:00:06]} 32. Raf1 {[%emt 0:00:56]} Rf8 {[%emt 0:02:32]} 33. f3 {[%emt 0:00:24]} Nf6 {[%emt 0:01:08]} (33... gxf3 $2 34. g4 Qf4 35. gxh5 $18) 34. c4 {[%emt 0:02:35] Weighted Error Value: White=0.05 (flawless) /Black=0.06 (flawless)} 1/2-1/2